bitfinex/quotes_BTCUSD_20250403
["timestamp","ask_amount","ask_price","bid_price","bid_amount"]
[1743689353942,0.254319,81860.0,81853.0,0.11979353]
[1743689354166,0.254319,81860.0,81853.0,0.10757653]
[1743689354623,0.244373,81842.0,81821.0,0.02]
[1743689354854,0.244373,81842.0,81811.0,0.004]
[1743689354855,0.244462,81812.0,81811.0,0.004]
[1743689355071,0.5334406,81812.0,81811.0,0.004]
[1743689355285,0.8734406,81812.0,81811.0,0.004]
[1743689355491,0.601719,81801.0,81800.0,6.9e-07]
[1743689355694,1.00331545,81801.0,81800.0,6.9e-07]
[1743689355902,0.6365506,81801.0,81800.0,6.9e-07]
[1743689356122,0.6034746,81801.0,81800.0,6.9e-07]
[1743689356570,0.23013813,81801.0,81800.0,6.9e-07]
[1743689356989,0.47463313,81801.0,81800.0,6.9e-07]
[1743689357199,0.47463313,81801.0,81800.0,4.069e-05]
[1743689357200,0.23013813,81801.0,81800.0,4.069e-05]
[1743689357637,0.23013813,81801.0,81800.0,0.01226469]
[1743689358113,0.00013813,81801.0,81800.0,0.01226469]
[1743689358323,0.00013813,81801.0,81800.0,0.01230469]
[1743689358525,0.00013813,81801.0,81800.0,0.31518497]
[1743689358728,0.00013813,81801.0,81800.0,0.31278029]
[1743689359160,0.00013813,81801.0,81800.0,0.31302029]
[1743689359563,0.00013813,81801.0,81800.0,0.31306029]
[1743689359772,0.00013813,81801.0,81800.0,0.18408069]
[1743689359981,0.00013813,81801.0,81800.0,0.00020069]
[1743689359982,0.24463313,81801.0,81800.0,0.00020069]
[1743689360224,0.25463313,81801.0,81800.0,0.00020069]
[1743689360453,0.38361273,81801.0,81800.0,0.00020069]
[1743689360648,0.38361273,81801.0,81800.0,0.00036899]
[1743689360866,0.38394933,81801.0,81800.0,0.00036899]
[1743689361296,0.01047473,81801.0,81800.0,0.00036899]
[1743689361732,0.13945433,81801.0,81800.0,0.00036899]
[1743689362363,0.15399518,81801.0,81800.0,0.00036899]
[1743689362802,0.49399518,81801.0,81800.0,9.9e-07]
[1743689362993,0.47945433,81801.0,81800.0,9.9e-07]
[1743689363909,0.27127885,81795.0,81794.0,9.9e-07]
[1743689364129,1.00803445,81795.0,81794.0,9.9e-07]
[1743689364357,0.6534936,81795.0,81794.0,9.9e-07]
[1743689364559,0.6412686,81795.0,81794.0,9.9e-07]
[1743689365595,0.6534936,81795.0,81794.0,9.9e-07]
[1743689366411,0.6534936,81795.0,81794.0,4.099e-05]
[1743689367007,0.6534936,81795.0,81794.0,8.099e-05]
[1743689367631,0.6534936,81795.0,81794.0,0.00012]
[1743689367851,0.28,81795.0,81794.0,0.00012]
[1743689368092,0.28,81795.0,81794.0,0.00016]
[1743689368486,0.28,81795.0,81794.0,0.0002]
[1743689370212,0.28,81795.0,81794.0,0.244716]
[1743689370438,0.28,81795.0,81794.0,0.256941]
[1743689370663,0.00047473,81801.0,81800.0,0.012224]
[1743689370868,0.00047473,81801.0,81800.0,0.256722]
[1743689371080,0.00047473,81801.0,81800.0,0.3734776]
[1743689371522,0.00047473,81801.0,81800.0,0.38590534]
[1743689371970,7.3e-07,81801.0,81800.0,0.72590534]
[1743689373661,7.3e-07,81801.0,81800.0,0.91038534]
[1743689373875,7.3e-07,81801.0,81800.0,0.441602]
[1743689374075,7.3e-07,81801.0,81800.0,0.18476]
[1743689374304,7.3e-07,81801.0,81800.0,0.196984]
[1743689374520,7.3e-07,81801.0,81794.0,0.0003683]
[1743689374728,0.25449873,81801.0,81797.0,0.244507]
[1743689374942,0.25449873,81801.0,81794.0,0.0003683]
[1743689375157,0.01000073,81801.0,81795.0,0.244512]
[1743689375554,0.2445,81800.0,81795.0,0.256737]
[1743689375871,0.02,81800.0,81797.0,0.244507]
[1743689376082,0.02,81800.0,81797.0,0.256732]
[1743689376514,0.02,81800.0,81798.0,0.256729]
[1743689376730,0.02,81800.0,81798.0,0.244504]
[1743689376941,7.3e-07,81801.0,81800.0,0.256722]
[1743689377174,0.01000073,81801.0,81800.0,0.256722]
[1743689377383,0.01000073,81801.0,81795.0,4e-05]
[1743689377384,0.244507,81797.0,81795.0,4e-05]
[1743689377594,7.3e-07,81801.0,81800.0,0.256722]
[1743689377808,0.02000073,81801.0,81800.0,0.256722]
[1743689378467,7.3e-07,81801.0,81800.0,0.3734776]
[1743689378685,0.244346,81852.0,81843.0,0.012218]
[1743689378941,0.244384,81839.0,81833.0,0.18576]
[1743689379163,0.1167556,81851.0,81842.0,0.012218]
[1743689379439,0.07,81851.0,81841.0,0.256592]
[1743689379646,0.244362,81846.0,81842.0,0.012218]
[1743689379854,0.03,81846.0,81845.0,0.256582]
[1743689380455,0.03,81846.0,81844.0,0.256583]
[1743689380683,0.03,81846.0,81845.0,0.009738]
[1743689380893,0.03,81846.0,81845.0,4e-05]
[1743689381109,0.03,81846.0,81845.0,0.012258]
[1743689381322,0.03,81846.0,81845.0,4e-05]
[1743689382619,0.0526902,81846.0,81845.0,4e-05]
[1743689382822,0.0526902,81846.0,81845.0,0.012258]
[1743689383036,0.0526902,81846.0,81845.0,4e-05]
[1743689383290,0.0526902,81846.0,81845.0,8e-05]
[1743689383512,0.0640354,81846.0,81845.0,8e-05]
[1743689384343,0.064372,81846.0,81845.0,8e-05]
[1743689385852,0.064372,81846.0,81845.0,0.012298]
[1743689386058,0.0530268,81846.0,81845.0,0.012298]
[1743689386481,0.0303366,81846.0,81845.0,0.012298]
[1743689386687,0.0303366,81846.0,81845.0,8e-05]
[1743689387125,0.1593102,81846.0,81845.0,8e-05]
[1743689387316,0.0303366,81846.0,81845.0,8e-05]
[1743689387535,0.0303366,81846.0,81845.0,0.012298]
[1743689387748,0.0303366,81846.0,81845.0,0.13149714]
[1743689387963,0.0003366,81846.0,81845.0,0.1290536]
[1743689388163,0.0003366,81846.0,81845.0,0.13149689]
[1743689388838,8.3e-07,81855.0,81854.0,0.601553]
[1743689389050,1e-06,81869.0,81868.0,0.256509]
[1743689389260,0.244207,81898.0,81882.0,0.256465]
[1743689389469,0.244216,81895.0,81882.0,0.5571006]
[1743689389702,0.244223,81893.0,81882.0,0.5571006]
[1743689389905,0.248203,81899.0,81882.0,0.5571006]
[1743689390112,0.244218,81894.0,81882.0,0.5571006]
[1743689390324,0.244218,81894.0,81882.0,0.196092]
[1743689390543,0.00047575,81883.0,81882.0,0.196092]
[1743689391647,0.00047575,81883.0,81882.0,0.31528992]
[1743689391802,0.00047575,81883.0,81882.0,0.3128476]
[1743689392208,0.00047575,81883.0,81882.0,0.32533621]
[1743689392388,0.00047575,81883.0,81882.0,0.66533621]
[1743689392590,0.00047575,81883.0,81882.0,0.71523621]
[1743689393522,7.5e-07,81883.0,81882.0,0.72023621]
[1743689393739,0.004,81899.0,81898.0,0.256416]
[1743689393949,0.004,81899.0,81898.0,0.7131716]
[1743689394193,0.10837898,81912.0,81911.0,0.256375]
[1743689394365,0.10837898,81912.0,81911.0,0.5551306]
[1743689394834,0.10837898,81912.0,81905.0,0.012209]
[1743689395020,0.10837898,81912.0,81907.0,0.244178]
[1743689395175,0.10837898,81912.0,81885.0,0.439636]
[1743689395176,0.24417,81910.0,81908.0,0.18192]
[1743689395373,0.26417,81910.0,81908.0,0.18192]
[1743689395583,0.24421,81897.0,81893.0,0.012211]
[1743689395782,0.01,81897.0,81895.0,0.244214]
[1743689395994,0.01,81897.0,81894.0,0.244218]
[1743689396197,0.01,81897.0,81893.0,0.18184]
[1743689396768,0.01,81897.0,81893.0,0.426059]
[1743689396973,0.25421,81897.0,81893.0,0.43827]
[1743689397177,0.244213,81896.0,81893.0,0.18184]
[1743689397388,0.244215,81895.0,81893.0,0.18184]
[1743689397593,0.244218,81894.0,81890.0,0.25644]
[1743689397800,0.244245,81885.0,81884.0,0.18136]
[1743689398005,0.244259,81881.0,81877.0,0.18132]
[1743689398181,0.244264,81879.0,81877.0,0.18132]
[1743689398382,0.264264,81879.0,81877.0,0.18132]
[1743689399633,0.012213,81878.0,81859.0,0.256536]
[1743689399881,0.012213,81878.0,81870.0,0.00013875]
[1743689399882,0.05,81878.0,81870.0,0.00013875]
[1743689400108,0.244272,81876.0,81871.0,0.012214]
[1743689400307,0.244278,81874.0,81870.0,0.00013875]
[1743689400509,0.244281,81873.0,81870.0,0.00013875]
[1743689400714,0.012214,81871.0,81870.0,0.00013875]
[1743689400914,0.4089696,81871.0,81870.0,0.00013875]
[1743689401746,0.4089696,81871.0,81870.0,7.5e-07]
[1743689401945,0.42351045,81871.0,81870.0,7.5e-07]
[1743689403421,0.012217,81847.0,81845.0,0.0002482]
[1743689403640,0.244361,81846.0,81845.0,0.00070963]
[1743689403797,0.414361,81846.0,81845.0,0.00070963]
[1743689404001,0.17,81846.0,81845.0,0.00070963]
[1743689404206,0.0487,81885.0,81845.0,0.00070963]
[1743689404426,0.1167556,81880.0,81867.0,0.244298]
[1743689404639,0.244285,81872.0,81869.0,0.244292]
[1743689404851,0.04,81872.0,81868.0,0.18048]
[1743689405085,0.256503,81870.0,81868.0,0.18048]
[1743689405335,0.244328,81857.0,81856.0,0.1802]
[1743689405532,0.244328,81857.0,81820.0,0.01709017]
[1743689405533,0.244358,81847.0,81842.0,0.244371]
[1743689405739,0.02,81847.0,81843.0,0.244369]
[1743689405944,0.02,81847.0,81841.0,0.004]
[1743689405945,0.264359,81847.0,81841.0,0.004]
[1743689406194,0.012218,81846.0,81841.0,0.004]
[1743689406374,0.04,81846.0,81841.0,0.004]
[1743689406579,0.0389007,81846.0,81841.0,0.004]
[1743689407609,0.0511187,81846.0,81841.0,0.004]
[1743689407841,0.27439277,81846.0,81845.0,6.3e-07]
[1743689408066,0.22679831,81846.0,81845.0,6.3e-07]
[1743689408295,0.0389007,81846.0,81845.0,6.3e-07]
[1743689408516,0.0389007,81846.0,81845.0,0.01221863]
[1743689408754,0.2832617,81846.0,81845.0,6.3e-07]
[1743689409406,0.0389007,81846.0,81845.0,6.3e-07]
[1743689410613,0.0389007,81846.0,81845.0,0.01221863]
[1743689410821,0.0389007,81846.0,81845.0,0.37578183]
[1743689411036,0.06808005,81880.0,81845.0,0.37578183]
[1743689411037,0.047,81890.0,81877.0,0.012213]
[1743689411258,0.012212,81886.0,81867.0,0.17984]
[1743689411461,0.012212,81886.0,81866.0,0.012215]
[1743689411462,0.25,81886.0,81872.0,0.012214]
[1743689411669,0.0003362,81878.0,81869.0,0.244291]
[1743689411876,0.0003362,81878.0,81870.0,0.012214]
[1743689411877,0.1903362,81878.0,81870.0,0.012214]
[1743689412283,0.19079869,81878.0,81868.0,0.192054]
[1743689412484,0.43506469,81878.0,81872.0,0.256496]
[1743689412693,0.19079869,81878.0,81877.0,0.012213]
[1743689412900,0.19079869,81878.0,81877.0,0.1289686]
[1743689413103,0.00079869,81878.0,81877.0,0.14330435]
[1743689413305,0.00079869,81878.0,81877.0,0.18990435]
[1743689413513,0.00079869,81878.0,81877.0,0.18746185]
[1743689413721,0.00079869,81878.0,81877.0,0.02410625]
[1743689413945,0.00079869,81878.0,81877.0,0.192093]
[1743689414146,0.00079869,81878.0,81877.0,0.17988]
[1743689414363,0.25506369,81878.0,81877.0,0.17988]
[1743689414774,0.01079869,81878.0,81877.0,0.3088486]
[1743689415462,0.01079869,81878.0,81877.0,0.6488486]
[1743689415463,0.00079869,81878.0,81877.0,0.6488486]
[1743689416267,0.0003364,81897.0,81896.0,0.256422]
[1743689416487,0.0003364,81897.0,81896.0,0.5524976]
[1743689416716,0.00047512,81897.0,81896.0,0.5524976]
[1743689417622,0.012211,81892.0,81877.0,8e-05]
[1743689417840,0.244265,81878.0,81877.0,0.00012]
[1743689418061,0.374265,81878.0,81877.0,0.00012]
[1743689419122,0.386478,81878.0,81877.0,0.00012]
[1743689419320,0.5032336,81878.0,81877.0,0.00012]
[1743689419551,0.5032336,81878.0,81877.0,1e-06]
[1743689419730,0.256494,81873.0,81872.0,1e-06]
[1743689419938,0.256579,81846.0,81845.0,0.0001681]
[1743689420145,0.516579,81846.0,81845.0,0.0001681]
[1743689420390,0.6333346,81846.0,81845.0,0.0001681]
[1743689420970,0.504361,81846.0,81845.0,0.0001681]
[1743689421168,0.26,81846.0,81845.0,0.2567501]
[1743689421367,0.012213,81874.0,81859.0,0.24432]
[1743689421600,0.244326,81858.0,81854.0,0.244335]
[1743689421799,0.02,81858.0,81852.0,0.25656]
[1743689422025,0.02,81858.0,81849.0,0.012217]
[1743689422342,0.02,81858.0,81845.0,0.00063059]
[1743689422519,0.244339,81854.0,81848.0,0.244353]
[1743689422737,0.02,81854.0,81851.0,0.244344]
[1743689422949,0.02,81854.0,81853.0,0.012217]
[1743689423124,0.02,81854.0,81853.0,0.1289726]
[1743689423622,0.02,81854.0,81853.0,0.24434]
[1743689423822,0.02,81854.0,81853.0,0.3733126]
[1743689424050,0.01221,81895.0,81872.0,0.012214]
[1743689424323,0.244278,81874.0,81870.0,0.244288]
[1743689424549,0.244281,81873.0,81870.0,0.244288]
[1743689424754,0.244293,81869.0,81867.0,0.17812]
[1743689425004,0.03,81869.0,81867.0,0.17812]
[1743689425253,0.03,81869.0,81868.0,0.012214]
[1743689425462,0.244295,81868.0,81867.0,0.17858249]
[1743689425670,0.01,81868.0,81867.0,0.17858249]
[1743689426080,0.01,81868.0,81867.0,0.19079649]
[1743689426435,0.01,81868.0,81867.0,0.17858249]
[1743689426657,0.1389696,81868.0,81867.0,0.00046249]
[1743689426862,0.19901967,81868.0,81867.0,4.9e-07]
[1743689427061,0.1871696,81868.0,81867.0,4.9e-07]
[1743689427302,0.56494446,81868.0,81867.0,4.9e-07]
[1743689427618,0.25656,81852.0,81845.0,0.0001681]
[1743689427853,0.6333156,81852.0,81845.0,0.0001681]
[1743689428053,0.6332756,81852.0,81845.0,0.0001681]
[1743689428575,0.6332756,81852.0,81845.0,2e-07]
[1743689428576,0.256579,81846.0,81845.0,2e-07]
[1743689428784,0.6233346,81846.0,81845.0,2e-07]
[1743689429426,0.506579,81846.0,81845.0,2e-07]
[1743689429630,0.6233346,81846.0,81845.0,2e-07]
[1743689430704,0.6233346,81846.0,81845.0,4.02e-05]
[1743689432840,0.6233346,81846.0,81845.0,8.02e-05]
[1743689433674,0.6233346,81846.0,81845.0,2e-07]
[1743689435029,0.62180615,81846.0,81845.0,2e-07]
[1743689435424,0.49283255,81846.0,81845.0,2e-07]
[1743689435634,0.491323,81846.0,81845.0,2e-07]
[1743689436118,0.6202966,81846.0,81845.0,2e-07]
[1743689437099,0.6202966,81846.0,81845.0,0.0001683]
[1743689437360,0.491323,81846.0,81845.0,0.0001683]
[1743689437564,0.25,81846.0,81845.0,0.0001683]
[1743689437965,0.25,81846.0,81845.0,0.2445323]
[1743689438136,0.25,81846.0,81845.0,0.2567503]
[1743689438483,0.25,81846.0,81845.0,0.0001683]
[1743689438617,0.25,81846.0,81845.0,0.2567503]
[1743689439253,0.25,81846.0,81845.0,0.2567903]
[1743689439796,0.25,81846.0,81845.0,0.0002483]
[1743689440003,0.494361,81846.0,81845.0,0.0002483]
[1743689440211,0.506579,81846.0,81845.0,0.0002883]
[1743689440461,0.506579,81846.0,81845.0,0.0003283]
[1743689440664,0.494361,81846.0,81845.0,0.0003283]
[1743689441055,0.25,81846.0,81845.0,0.0003283]
[1743689441500,0.494361,81846.0,81845.0,0.0003283]
[1743689441707,0.25,81846.0,81845.0,0.2569103]
[1743689441919,0.25,81846.0,81845.0,0.0003283]
[1743689442120,0.494361,81846.0,81845.0,0.0003283]
[1743689442272,0.25,81846.0,81845.0,0.0003283]
[1743689442476,0.25,81846.0,81845.0,0.2446923]
[1743689442845,0.29875556,81880.0,81845.0,0.2446923]
[1743689442846,0.02456753,81879.0,81865.0,0.244304]
[1743689443054,0.01046249,81868.0,81867.0,0.256512]
[1743689443269,0.15141401,81891.0,81885.0,0.244244]
[1743689443482,0.244238,81888.0,81883.0,0.244249]
[1743689443692,0.02,81888.0,81872.0,0.012214]
[1743689443903,0.244243,81886.0,81878.0,0.012213]
[1743689444107,0.244243,81886.0,81880.0,0.244258]
[1743689444108,0.274243,81886.0,81880.0,0.244258]
[1743689444373,0.03,81886.0,81882.0,0.244252]
[1743689444585,0.03,81886.0,81885.0,0.012212]
[1743689444791,0.03,81886.0,81885.0,0.1289676]
[1743689445018,0.0001387,81893.0,81889.0,0.256441]
[1743689445237,0.0201387,81893.0,81891.0,0.244226]
[1743689445515,0.244247,81884.0,81869.0,0.012214]
[1743689445721,0.264247,81884.0,81867.0,0.244296]
[1743689445930,0.012212,81880.0,81871.0,0.17472]
[1743689446137,0.244262,81879.0,81871.0,0.17472]
[1743689446351,0.244281,81873.0,81871.0,0.17472]
[1743689446555,0.02,81873.0,81871.0,0.17472]
[1743689446764,0.264281,81873.0,81871.0,0.17472]
[1743689446971,0.02,81873.0,81871.0,0.17472]
[1743689447598,0.02,81873.0,81871.0,0.419004]
[1743689448060,0.02,81873.0,81846.0,0.0499]
[1743689448269,0.244361,81846.0,81845.0,0.0003283]
[1743689448480,0.02,81846.0,81845.0,0.0003283]
[1743689449105,0.04,81846.0,81845.0,0.0003283]
[1743689449850,0.04,81846.0,81845.0,0.00079079]
[1743689450680,0.052218,81846.0,81845.0,0.00079079]
[1743689451513,0.1689736,81846.0,81845.0,0.00079079]
[1743689452606,0.04,81846.0,81845.0,0.00079079]
[1743689453642,0.04,81846.0,81834.0,0.244391]
[1743689453851,0.0404622,81846.0,81844.0,0.244366]
[1743689454057,0.0404622,81846.0,81845.0,0.012218]
[1743689454664,0.0404622,81846.0,81843.0,0.244369]
[1743689455083,0.0404622,81846.0,81828.0,0.244414]
[1743689455084,0.0526802,81846.0,81828.0,0.244414]
[1743689455297,0.012218,81843.0,81825.0,0.17304]
[1743689455499,0.244407,81831.0,81827.0,0.244417]
[1743689455729,0.03,81831.0,81825.0,0.244423]
[1743689455936,0.244412,81829.0,81824.0,0.185221]
[1743689456146,0.02,81829.0,81827.0,0.256636]
[1743689456586,0.02,81829.0,81828.0,0.01222]
[1743689457003,0.02,81829.0,81823.0,0.1728]
[1743689457218,0.244415,81828.0,81823.0,0.417228]
[1743689457447,0.03,81828.0,81826.0,0.012221]
[1743689457644,0.03,81828.0,81827.0,0.01222]
[1743689457846,0.244358,81847.0,81842.0,0.244371]
[1743689458054,0.0704622,81846.0,81842.0,0.244371]
[1743689458284,0.0704622,81846.0,81845.0,0.012218]
[1743689458987,0.0704622,81846.0,81839.0,0.417181]
[1743689459208,0.0704622,81846.0,81840.0,0.244378]
[1743689459209,0.3148252,81846.0,81840.0,0.244378]
[1743689459399,0.0704622,81846.0,81839.0,0.1728]
[1743689459580,0.244378,81841.0,81839.0,0.1728]
[1743689459788,0.244388,81837.0,81832.0,0.244401]
[1743689460022,0.02,81837.0,81831.0,0.01222]
[1743689460239,0.244391,81836.0,81828.0,0.256632]
[1743689460442,0.03,81836.0,81831.0,0.244405]
[1743689460716,0.03,81836.0,81830.0,0.01222]
[1743689460717,0.03,81836.0,81833.0,0.244398]
[1743689460875,0.03,81836.0,81834.0,0.37581432]
[1743689461076,0.03,81836.0,81835.0,0.012219]
[1743689461332,0.244394,81835.0,81833.0,0.1728]
[1743689461627,0.25,81835.0,81825.0,0.244423]
[1743689461848,0.25,81835.0,81825.0,0.256645]
[1743689462048,0.25,81835.0,81834.0,0.012219]
[1743689462247,0.25,81835.0,81834.0,0.1289746]
[1743689462457,0.25,81835.0,81834.0,0.4689746]
[1743689462669,0.2443,81867.0,81845.0,0.012218]
[1743689462878,0.012216,81854.0,81845.0,0.1728]
[1743689463085,0.0104622,81846.0,81845.0,0.1728]
[1743689463302,0.0104622,81846.0,81845.0,0.185018]
[1743689463439,0.0104622,81846.0,81845.0,0.012218]
[1743689463650,0.0104622,81846.0,81845.0,0.256582]
[1743689463857,0.0104622,81846.0,81845.0,0.3733376]
[1743689464052,0.0004622,81846.0,81845.0,0.3733376]
[1743689465114,0.0004622,81846.0,81845.0,0.3733776]
[1743689466459,0.0004622,81846.0,81845.0,0.256622]
[1743689466630,0.0104622,81846.0,81845.0,0.256622]
[1743689467624,0.0104622,81846.0,81845.0,4e-05]
[1743689467829,0.2670412,81846.0,81845.0,4e-05]
[1743689468511,0.3837968,81846.0,81845.0,4e-05]
[1743689472676,0.2670412,81846.0,81845.0,4e-05]
[1743689472909,0.3837968,81846.0,81845.0,4e-05]
[1743689474103,0.3841332,81846.0,81845.0,4e-05]
[1743689477505,0.0107986,81846.0,81845.0,0.256622]
[1743689477930,0.0107986,81846.0,81845.0,0.3733776]
[1743689478564,0.0494,81896.0,81847.0,0.005]
[1743689478779,0.0494,81896.0,81845.0,0.76088048]
[1743689478780,0.0125464,81897.0,81883.0,0.256462]
[1743689478781,0.14871518,81884.0,81883.0,0.256462]
[1743689478991,0.14871518,81884.0,81883.0,0.429262]
[1743689479863,0.14871518,81884.0,81882.0,0.244253]
[1743689480087,0.14871518,81884.0,81883.0,0.185012]
[1743689480270,0.04047487,81884.0,81883.0,0.185012]
[1743689480501,0.04047487,81884.0,81883.0,0.30420988]
[1743689480709,0.00047487,81884.0,81883.0,0.3017676]
[1743689481536,0.00047487,81884.0,81883.0,0.184972]
[1743689481741,0.01047487,81884.0,81883.0,0.184972]
[1743689481949,0.01047487,81884.0,81881.0,0.244256]
[1743689482310,0.244279,81874.0,81872.0,0.00899029]
[1743689482406,0.25648,81878.0,81877.0,0.17276]
[1743689482658,0.23,81878.0,81874.0,0.012213]
[1743689482893,0.23,81878.0,81876.0,0.24427]
[1743689483130,0.23,81878.0,81877.0,0.012213]
[1743689484104,0.23,81878.0,81877.0,0.1289686]
[1743689484353,0.23,81878.0,81877.0,0.4689686]
[1743689484613,0.00047487,81884.0,81883.0,0.256462]
[1743689484857,0.00047487,81884.0,81883.0,0.7132176]
[1743689485095,8.7e-07,81884.0,81883.0,0.78321392]
[1743689485344,0.004,81899.0,81896.0,0.256422]
[1743689485580,0.004,81899.0,81881.0,0.012212]
[1743689485581,0.01221,81896.0,81881.0,0.012212]
[1743689485823,0.03,81896.0,81891.0,0.012211]
[1743689486081,0.03,81896.0,81895.0,0.01221]
[1743689487524,0.03,81896.0,81893.0,0.244217]
[1743689487782,0.03,81896.0,81894.0,0.244217]
[1743689488029,0.03,81896.0,81895.0,0.01221]
[1743689488475,0.03,81896.0,81895.0,0.1289656]
[1743689488703,0.03,81896.0,81895.0,0.01221]
[1743689489602,0.03,81896.0,81895.0,0.1289656]
[1743689490046,0.0003364,81897.0,81895.0,0.1289656]
[1743689490047,0.0003364,81897.0,81896.0,0.256422]
[1743689490257,0.0003364,81897.0,81896.0,0.3731776]
[1743689490670,0.0003364,81897.0,81896.0,0.43391845]
[1743689490881,0.004,81929.0,81927.0,0.256324]
[1743689491126,0.15079969,81928.0,81927.0,0.3730796]
[1743689491346,0.15079969,81928.0,81927.0,0.7130796]
[1743689491573,6.9e-07,81929.0,81928.0,0.012205]
[1743689491788,0.00010801,81929.0,81928.0,0.13140101]
[1743689491998,0.00010801,81929.0,81928.0,0.1289606]
[1743689492209,0.01010801,81929.0,81928.0,0.1289606]
[1743689493048,0.01010801,81929.0,81927.0,0.256324]
[1743689493262,0.01010801,81929.0,81919.0,0.34]
[1743689493263,0.244125,81926.0,81919.0,0.34]
[1743689493477,0.03,81926.0,81916.0,0.012207]
[1743689493687,0.244148,81918.0,81916.0,0.17264]
[1743689493901,0.04,81918.0,81917.0,0.1289626]
[1743689494321,0.04,81918.0,81917.0,0.4689626]
[1743689494522,0.04,81918.0,81917.0,0.012207]
[1743689494932,0.04,81918.0,81916.0,0.416792]
[1743689494933,0.04,81918.0,81916.0,0.17264]
[1743689495134,0.04,81918.0,81916.0,0.41679]
[1743689495347,0.04,81918.0,81916.0,0.17264]
[1743689495556,0.04,81918.0,81917.0,0.012207]
[1743689496171,0.04,81918.0,81917.0,0.1289626]
[1743689497909,0.04,81918.0,81917.0,0.012207]
[1743689498157,0.04,81918.0,81916.0,0.244151]
[1743689498401,0.04,81918.0,81902.0,0.012209]
[1743689498638,0.052207,81918.0,81910.0,0.244169]
[1743689498890,0.04,81918.0,81914.0,0.012207]
[1743689499130,0.04,81918.0,81917.0,0.012207]
[1743689500993,0.04,81918.0,81916.0,0.2444864]
[1743689500994,0.284148,81918.0,81916.0,0.0003364]
[1743689501323,0.04,81918.0,81917.0,0.012247]
[1743689502455,0.04,81918.0,81917.0,0.1290026]
[1743689503119,0.04,81918.0,81917.0,0.3731516]
[1743689503346,0.04,81918.0,81917.0,0.244189]
[1743689503606,0.284146,81918.0,81917.0,4e-05]
[1743689503838,0.04,81918.0,81917.0,4e-05]
[1743689504288,0.284146,81918.0,81917.0,4e-05]
[1743689504809,0.296353,81918.0,81917.0,4e-05]
[1743689505026,0.296353,81918.0,81917.0,0.01220678]
[1743689505280,0.4131086,81918.0,81917.0,0.01220678]
[1743689505512,0.4622086,81918.0,81917.0,0.01220678]
[1743689505775,0.04,81918.0,81917.0,0.25635578]
[1743689506001,0.04,81918.0,81917.0,0.26856278]
[1743689506629,0.04,81918.0,81917.0,0.38531838]
[1743689507443,0.04,81918.0,81917.0,0.01220678]
[1743689507702,0.284146,81918.0,81917.0,0.01220678]
[1743689507970,0.296353,81918.0,81917.0,0.01220678]
[1743689508248,0.296353,81918.0,81917.0,0.01224678]
[1743689508476,0.4622086,81918.0,81917.0,0.01224678]
[1743689508695,0.296353,81918.0,81917.0,0.01224678]
[1743689509127,0.296353,81918.0,81917.0,0.26860278]
[1743689509128,0.04,81918.0,81917.0,0.26860278]
[1743689510123,0.00027621,81929.0,81917.0,0.26860278]
[1743689510124,0.00027621,81929.0,81928.0,0.596321]
[1743689510358,0.00027621,81929.0,81928.0,0.89780338]
[1743689511047,0.01027621,81929.0,81928.0,0.02437178]
[1743689511279,0.25438921,81929.0,81928.0,0.01216678]
[1743689511537,0.01027621,81929.0,81928.0,0.01216678]
[1743689511790,0.25438921,81929.0,81928.0,0.01216678]
[1743689512474,0.01027621,81929.0,81928.0,0.01056678]
[1743689512706,0.01027621,81929.0,81928.0,0.26688778]
[1743689512936,0.26659421,81929.0,81928.0,0.01056678]
[1743689513404,0.01027621,81929.0,81928.0,0.01056678]
[1743689513632,0.01027621,81929.0,81928.0,0.01060678]
[1743689513633,0.25438921,81929.0,81928.0,0.01060678]
[1743689513872,0.01027621,81929.0,81928.0,0.25472278]
[1743689514117,0.01027621,81929.0,81928.0,0.26692778]
[1743689514592,0.01027621,81929.0,81928.0,0.38368338]
[1743689515098,0.01027621,81929.0,81928.0,0.01060678]
[1743689515340,0.01027621,81929.0,81928.0,0.26692778]
[1743689516539,0.01027621,81929.0,81928.0,0.38368338]
[1743689516769,0.00027621,81929.0,81928.0,0.72368338]
[1743689517736,0.00027621,81929.0,81928.0,0.73822423]
[1743689517980,6.1e-07,81933.0,81932.0,0.596309]
[1743689518220,6.1e-07,81933.0,81932.0,0.72760545]
[1743689518633,6.1e-07,81933.0,81932.0,0.90012545]
[1743689519259,6.1e-07,81933.0,81932.0,0.8855846]
[1743689519504,0.01000061,81933.0,81932.0,0.8855846]
[1743689519745,6.1e-07,81933.0,81932.0,0.8855846]
[1743689520461,6.1e-07,81933.0,81932.0,0.8856246]
[1743689520891,0.01000061,81933.0,81932.0,0.8856246]
[1743689521109,0.25410161,81933.0,81932.0,4e-05]
[1743689521572,0.01000061,81933.0,81932.0,4e-05]
[1743689522088,0.01000061,81933.0,81932.0,0.256349]
[1743689522325,0.01000061,81933.0,81932.0,4e-05]
[1743689522538,0.01000061,81933.0,81932.0,0.3731046]
[1743689522755,6.1e-07,81933.0,81932.0,0.7131046]
[1743689523836,6.1e-07,81933.0,81932.0,0.72764545]
[1743689524050,6.1e-07,81933.0,81932.0,0.7131046]
[1743689524259,6.1e-07,81933.0,81932.0,0.72764545]
[1743689524694,0.004,81959.0,81946.0,0.596266]
[1743689524695,8e-07,81947.0,81946.0,0.596266]
[1743689524903,8e-07,81947.0,81946.0,0.94849231]
[1743689525120,8e-07,81947.0,81946.0,0.12732238]
[1743689525336,0.0100008,81947.0,81946.0,0.01056678]
[1743689525550,0.1389594,81947.0,81946.0,0.01056678]
[1743689526199,0.0100008,81947.0,81946.0,0.01056678]
[1743689526413,0.0222038,81947.0,81946.0,0.01056678]
[1743689526626,0.1389594,81947.0,81946.0,0.01056678]
[1743689526844,0.256306,81933.0,81927.0,0.0003364]
[1743689527062,0.7275616,81933.0,81927.0,0.0003364]
[1743689527363,0.74210245,81933.0,81927.0,0.0003364]
[1743689528431,0.7275616,81933.0,81927.0,0.0003364]
[1743689529389,0.610806,81933.0,81927.0,0.0003364]
[1743689529597,0.564106,81933.0,81927.0,0.0003364]